[Event "MČR juniorů a juniorek v rapid šachu 2023"]
[Site "Czech Republic"]
[Date "2023.09.24"]
[Round "7.20"]
[White "Pejrimovsky, Tadeas Rubel"]
[Black "Housa, Vojtech"]
[Result "1-0"]
[TimeControl "20 min + 5 sec per move"]
[WhiteFideId "23709537"]
[BlackFideId "23736364"]
[WhiteElo "1679"]
[BlackElo "1539"]

1. e4 {[%clk 00:20:08]} {[%emt 00:00:02]} c5 {[%clk 00:20:10]} 2. b4 {[%clk
00:20:07]} {[%emt 00:00:05]} cxb4 {[%clk 00:19:49]} {[%emt 00:00:26]} 3. a3
{[%clk 00:20:11]} e6 {[%clk 00:19:51]} {[%emt 00:00:03]} 4. axb4 {[%clk
00:20:14]} {[%emt 00:00:02]} Bxb4 {[%clk 00:19:54]} {[%emt 00:00:02]} 5. c3
{[%clk 00:20:18]} Be7 {[%clk 00:19:58]} {[%emt 00:00:02]} 6. d4 {[%clk
00:20:21]} b6 {[%clk 00:19:55]} {[%emt 00:00:09]} 7. Bd3 {[%clk 00:19:41]}
{[%emt 00:00:45]} Bb7 {[%clk 00:19:54]} {[%emt 00:00:06]} 8. f4 {[%clk
00:19:34]} {[%emt 00:00:11]} d5 {[%clk 00:19:40]} {[%emt 00:00:19]} 9. e5
{[%clk 00:19:36]} {[%emt 00:00:03]} Nd7 {[%clk 00:19:44]} {[%emt 00:00:01]} 10.
Nf3 {[%clk 00:19:38]} {[%emt 00:00:04]} h6 {[%clk 00:18:56]} {[%emt 00:00:53]}
11. O-O {[%clk 00:19:35]} {[%emt 00:00:07]} g5 {[%clk 00:18:42]} {[%emt
00:00:19]} 12. f5 {[%clk 00:19:01]} {[%emt 00:00:40]} g4 {[%clk 00:17:52]}
{[%emt 00:00:55]} 13. Ne1 {[%clk 00:19:04]} Bg5 {[%clk 00:17:56]} {[%emt
00:00:01]} 14. fxe6 {[%clk 00:18:56]} {[%emt 00:00:14]} Bxc1 {[%clk 00:15:42]}
{[%emt 00:02:19]} 15. exf7+ {[%clk 00:17:08]} {[%emt 00:01:52]} Ke7 {[%clk
00:15:36]} {[%emt 00:00:11]} 16. Qxc1 {[%clk 00:15:39]} {[%emt 00:01:34]} Ngf6
{[%clk 00:14:51]} {[%emt 00:00:50]} 17. Bg6 {[%clk 00:11:21]} {[%emt 00:04:23]}
Kf8 {[%clk 00:10:08]} {[%emt 00:04:48]} 18. exf6 {[%clk 00:10:49]} {[%emt
00:00:37]} Nxf6 {[%clk 00:10:00]} {[%emt 00:00:13]} 19. Qf4 {[%clk 00:09:57]}
{[%emt 00:00:56]} Kg7 {[%clk 00:09:29]} {[%emt 00:00:36]} 20. Bf5 {[%clk
00:10:00]} {[%emt 00:00:02]} Bc8 {[%clk 00:09:06]} {[%emt 00:00:29]} 21. Bxc8
{[%clk 00:09:50]} {[%emt 00:00:15]} Rxc8 {[%clk 00:09:08]} {[%emt 00:00:03]} 22.
Nd3 {[%clk 00:09:54]} {[%emt 00:00:01]} h5 {[%clk 00:08:03]} {[%emt 00:01:10]}
23. Rxa7 {[%clk 00:09:51]} {[%emt 00:00:09]} 1-0

[Event "MČR juniorů a juniorek v rapid šachu 2023"]
[Site "Czech Republic"]
[Date "2023.09.24"]
[Round "7.21"]
[White "Janouskova, Adela"]
[Black "Boff, Vojtech"]
[Result "1/2-1/2"]
[TimeControl "20 min + 5 sec per move"]
[WhiteFideId "23709804"]
[BlackFideId "23733969"]
[WhiteElo "1442"]
[BlackElo "1632"]

1. e4 {[%clk 00:20:08]} c5 {[%clk 00:20:04]} {[%emt 00:00:06]} 2. c3 {[%clk
00:19:53]} {[%emt 00:00:20]} d5 {[%clk 00:19:47]} {[%emt 00:00:22]} 3. exd5
{[%clk 00:19:55]} {[%emt 00:00:03]} Qxd5 {[%clk 00:19:49]} {[%emt 00:00:03]} 4.
d4 {[%clk 00:19:53]} {[%emt 00:00:08]} e6 {[%clk 00:19:36]} {[%emt 00:00:17]} 5.
Nf3 {[%clk 00:19:37]} {[%emt 00:00:21]} cxd4 {[%clk 00:19:00]} {[%emt
00:00:41]} 6. cxd4 {[%clk 00:19:35]} {[%emt 00:00:07]} Nf6 {[%clk 00:18:42]}
{[%emt 00:00:22]} 7. Nc3 {[%clk 00:19:35]} {[%emt 00:00:07]} Qd8 {[%clk
00:18:34]} {[%emt 00:00:13]} 8. Be2 {[%clk 00:18:33]} {[%emt 00:01:07]} Be7
{[%clk 00:17:56]} {[%emt 00:00:42]} 9. O-O {[%clk 00:18:29]} {[%emt 00:00:09]}
Nc6 {[%clk 00:17:25]} {[%emt 00:00:36]} 10. h3 {[%clk 00:18:10]} {[%emt
00:00:25]} O-O {[%clk 00:16:51]} {[%emt 00:00:37]} 11. Be3 {[%clk 00:18:05]}
{[%emt 00:00:11]} b6 {[%clk 00:15:26]} {[%emt 00:01:30]} 12. Qd2 {[%clk
00:15:45]} {[%emt 00:02:25]} Bb7 {[%clk 00:14:39]} {[%emt 00:00:51]} 13. Rfd1
{[%clk 00:15:31]} {[%emt 00:00:19]} Nd5 {[%clk 00:14:03]} {[%emt 00:00:40]} 14.
Nxd5 {[%clk 00:13:40]} {[%emt 00:01:56]} Qxd5 {[%clk 00:13:53]} {[%emt
00:00:15]} 15. a3 {[%clk 00:12:40]} {[%emt 00:01:06]} Rfd8 {[%clk 00:11:41]}
{[%emt 00:02:17]} 16. Rac1 {[%clk 00:11:42]} {[%emt 00:01:03]} Rac8 {[%clk
00:10:47]} {[%emt 00:00:58]} 17. Bc4 {[%clk 00:11:01]} {[%emt 00:00:46]} Qd7
{[%clk 00:10:44]} {[%emt 00:00:08]} 18. Ba2 {[%clk 00:10:40]} {[%emt 00:00:27]}
Bf6 {[%clk 00:09:41]} {[%emt 00:01:08]} 19. Bb1 {[%clk 00:08:17]} {[%emt
00:02:29]} Ne7 {[%clk 00:08:37]} {[%emt 00:01:08]} 20. Rxc8 {[%clk 00:06:41]}
{[%emt 00:01:42]} Rxc8 {[%clk 00:08:33]} {[%emt 00:00:08]} 21. Ng5 {[%clk
00:05:58]} {[%emt 00:00:48]} g6 {[%clk 00:07:40]} {[%emt 00:00:59]} 22. Ne4
{[%clk 00:05:00]} {[%emt 00:01:03]} Bg7 {[%clk 00:07:09]} {[%emt 00:00:36]} 23.
Bh6 {[%clk 00:02:53]} {[%emt 00:02:12]} Qc6 {[%clk 00:05:44]} {[%emt 00:01:30]}
24. Bxg7 {[%clk 00:02:33]} {[%emt 00:00:26]} Kxg7 {[%clk 00:05:47]} {[%emt
00:00:02]} 25. f3 {[%clk 00:02:25]} {[%emt 00:00:13]} Ng8 {[%clk 00:03:59]}
{[%emt 00:01:52]} 26. Qg5 {[%clk 00:01:43]} {[%emt 00:00:48]} Qd5 {[%clk
00:03:53]} {[%emt 00:00:11]} 27. Qf4 {[%clk 00:01:31]} {[%emt 00:00:16]} Rd8
{[%clk 00:02:46]} {[%emt 00:01:12]} 28. Qe3 {[%clk 00:00:22]} {[%emt 00:01:14]}
e5 {[%clk 00:01:51]} {[%emt 00:01:00]} 29. Nc3 {[%clk 00:00:09]} {[%emt
00:00:18]} exd4 {[%clk 00:01:23]} {[%emt 00:00:33]} 30. Nxd5 {[%clk 00:00:10]}
{[%emt 00:00:04]} dxe3 {[%clk 00:01:27]} {[%emt 00:00:02]} 31. Nxe3 {[%clk
00:00:13]} {[%emt 00:00:01]} Rxd1+ {[%clk 00:01:19]} {[%emt 00:00:13]} 32. Nxd1
{[%clk 00:00:17]} Ne7 {[%clk 00:01:17]} {[%emt 00:00:06]} 33. Kf2 {[%clk
00:00:20]} {[%emt 00:00:03]} Kf6 {[%clk 00:01:16]} {[%emt 00:00:06]} 34. Nc3
{[%clk 00:00:20]} {[%emt 00:00:06]} h6 {[%clk 00:00:54]} {[%emt 00:00:27]} 35.
Ke3 {[%clk 00:00:12]} {[%emt 00:00:13]} Nd5+ {[%clk 00:00:53]} {[%emt
00:00:05]} 36. Nxd5+ {[%clk 00:00:12]} {[%emt 00:00:06]} Bxd5 {[%clk 00:00:57]}
37. Kd4 {[%clk 00:00:10]} {[%emt 00:00:07]} Ke6 {[%clk 00:00:54]} {[%emt
00:00:08]} 38. Bd3 {[%clk 00:00:09]} {[%emt 00:00:07]} Bb7 {[%clk 00:00:51]}
{[%emt 00:00:08]} 39. Bc4+ {[%clk 00:00:12]} {[%emt 00:00:02]} Kf6 {[%clk
00:00:54]} {[%emt 00:00:01]} 40. Bd5 {[%clk 00:00:12]} {[%emt 00:00:05]} Ba6
{[%clk 00:00:51]} {[%emt 00:00:08]} 41. Be4 {[%clk 00:00:10]} {[%emt 00:00:07]}
Bf1 {[%clk 00:00:48]} {[%emt 00:00:08]} 42. f4 {[%clk 00:00:13]} {[%emt
00:00:02]} Ke6 {[%clk 00:00:33]} {[%emt 00:00:20]} 43. h4 {[%clk 00:00:09]}
{[%emt 00:00:08]} Bb5 {[%clk 00:00:27]} {[%emt 00:00:11]} 44. Bd5+ {[%clk
00:00:10]} {[%emt 00:00:05]} Kf6 {[%clk 00:00:29]} {[%emt 00:00:02]} 45. Be4
{[%clk 00:00:10]} {[%emt 00:00:05]} Ke6 {[%clk 00:00:30]} {[%emt 00:00:04]} 46.
g3 {[%clk 00:00:14]} {[%emt 00:00:01]} Be8 {[%clk 00:00:27]} {[%emt 00:00:08]}
47. Kc4 {[%clk 00:00:11]} {[%emt 00:00:09]} Kd6 {[%clk 00:00:22]} {[%emt
00:00:11]} 48. Kd4 {[%clk 00:00:10]} {[%emt 00:00:06]} Bd7 {[%clk 00:00:23]}
{[%emt 00:00:03]} 49. Bd5 {[%clk 00:00:11]} {[%emt 00:00:04]} Be8 {[%clk
00:00:24]} {[%emt 00:00:03]} 50. Be4 {[%clk 00:00:14]} {[%emt 00:00:03]} f6
{[%clk 00:00:18]} {[%emt 00:00:12]} 51. Kc4 {[%clk 00:00:14]} {[%emt 00:00:05]}
g5 {[%clk 00:00:19]} {[%emt 00:00:04]} 52. hxg5 {[%clk 00:00:14]} {[%emt
00:00:05]} hxg5 {[%clk 00:00:23]} {[%emt 00:00:01]} 53. fxg5 {[%clk 00:00:17]}
{[%emt 00:00:02]} fxg5 {[%clk 00:00:27]} 54. Kd4 {[%clk 00:00:21]} {[%emt
00:00:02]} Bf7 {[%clk 00:00:28]} {[%emt 00:00:04]} 55. Bf5 {[%clk 00:00:12]}
{[%emt 00:00:13]} Be8 {[%clk 00:00:17]} {[%emt 00:00:17]} 56. Bg4 {[%clk
00:00:14]} {[%emt 00:00:03]} Bc6 {[%clk 00:00:17]} {[%emt 00:00:04]} 57. Bf5
{[%clk 00:00:10]} {[%emt 00:00:10]} Be8 {[%clk 00:00:21]} 58. Bg4 {[%clk
00:00:10]} {[%emt 00:00:05]} Bg6 {[%clk 00:00:25]} 59. Bf3 {[%clk 00:00:12]}
{[%emt 00:00:03]} Bf5 {[%clk 00:00:22]} {[%emt 00:00:07]} 60. Be2 {[%clk
00:00:08]} {[%emt 00:00:09]} Bd7 {[%clk 00:00:25]} {[%emt 00:00:03]} 61. Bf3
{[%clk 00:00:12]} {[%emt 00:00:01]} Bb5 {[%clk 00:00:17]} {[%emt 00:00:12]} 62.
Be4 {[%clk 00:00:10]} {[%emt 00:00:07]} Bd7 {[%clk 00:00:20]} {[%emt 00:00:02]}
63. Bf3 {[%clk 00:00:13]} {[%emt 00:00:02]} Be6 {[%clk 00:00:21]} {[%emt
00:00:03]} 64. Be2 {[%clk 00:00:16]} {[%emt 00:00:02]} Bb3 {[%clk 00:00:25]} 65.
Bf3 {[%clk 00:00:20]} {[%emt 00:00:02]} Ke6 {[%clk 00:00:27]} {[%emt 00:00:03]}
66. Bg4+ {[%emt 00:00:12]} Kf6 {[%clk 00:00:21]} {[%emt 00:00:09]} 67. Ke4
{[%clk 00:00:16]} {[%emt 00:00:04]} Bc4 {[%clk 00:00:20]} {[%emt 00:00:06]} 68.
Kd4 {[%clk 00:00:15]} {[%emt 00:00:06]} Bf7 {[%clk 00:00:16]} {[%emt 00:00:09]}
69. Ke4 {[%clk 00:00:09]} {[%emt 00:00:11]} Ba2 {[%clk 00:00:16]} {[%emt
00:00:05]} 70. Kd4 {[%clk 00:00:09]} {[%emt 00:00:06]} Bb3 {[%clk 00:00:08]}
{[%emt 00:00:13]} 71. Ke4 {[%clk 00:00:08]} {[%emt 00:00:05]} Ba2 {[%clk
00:00:12]} {[%emt 00:00:02]} 72. Kd4 {[%clk 00:00:11]} {[%emt 00:00:01]} Bf7
{[%clk 00:00:14]} {[%emt 00:00:03]} 73. Ke4 {[%clk 00:00:14]} {[%emt 00:00:03]}
a6 {[%clk 00:00:08]} {[%emt 00:00:12]} 74. Bh3 {[%clk 00:00:12]} {[%emt
00:00:06]} Bc4 {[%clk 00:00:09]} {[%emt 00:00:04]} 75. Bg4 {[%clk 00:00:14]}
{[%emt 00:00:02]} a5 {[%clk 00:00:13]} {[%emt 00:00:02]} 76. Kd4 {[%clk
00:00:17]} {[%emt 00:00:02]} Bf7 {[%clk 00:00:10]} {[%emt 00:00:08]} 77. Ke4
{[%clk 00:00:16]} {[%emt 00:00:06]} Ba2 {[%clk 00:00:09]} {[%emt 00:00:06]} 78.
Kd4 {[%clk 00:00:18]} {[%emt 00:00:03]} Bf7 {[%clk 00:00:11]} {[%emt 00:00:03]}
79. Ke4 {[%clk 00:00:17]} {[%emt 00:00:05]} Bc4 {[%clk 00:00:10]} {[%emt
00:00:06]} 80. Kd4 {[%clk 00:00:20]} {[%emt 00:00:02]} Bb3 {[%clk 00:00:13]}
{[%emt 00:00:02]} 81. Ke4 {[%clk 00:00:23]} {[%emt 00:00:02]} Ba2 {[%clk
00:00:12]} {[%emt 00:00:06]} 82. Kd4 {[%clk 00:00:11]} {[%emt 00:00:17]} Bf7
{[%clk 00:00:13]} {[%emt 00:00:04]} 83. Ke4 {[%clk 00:00:14]} {[%emt 00:00:02]}
Bg8 {[%clk 00:00:13]} {[%emt 00:00:05]} 84. Kd4 {[%clk 00:00:16]} {[%emt
00:00:04]} Ba2 {[%clk 00:00:15]} {[%emt 00:00:04]} 1/2-1/2

[Event "MČR juniorů a juniorek v rapid šachu 2023"]
[Site "Czech Republic"]
[Date "2023.09.24"]
[Round "7.22"]
[White "Merinsky, Vaclav"]
[Black "Boff, Ondrej"]
[Result "1-0"]
[TimeControl "20 min + 5 sec per move"]
[WhiteFideId "390062"]
[BlackFideId "23733950"]
[WhiteElo "1869"]
[BlackElo "1486"]

1. e4 {[%clk 00:20:08]} {[%emt 00:00:02]} c5 {[%clk 00:20:06]} {[%emt
00:00:04]} 2. d4 {[%clk 00:20:12]} {[%emt 00:00:01]} cxd4 {[%clk 00:19:57]}
{[%emt 00:00:14]} 3. Qxd4 {[%clk 00:20:14]} {[%emt 00:00:03]} Nc6 {[%clk
00:19:53]} {[%emt 00:00:09]} 4. Qd1 {[%clk 00:20:17]} {[%emt 00:00:02]} d6
{[%clk 00:19:40]} {[%emt 00:00:18]} 5. Nc3 {[%clk 00:20:16]} {[%emt 00:00:06]}
Nf6 {[%clk 00:19:17]} {[%emt 00:00:28]} 6. Nf3 {[%clk 00:20:14]} {[%emt
00:00:06]} g6 {[%clk 00:19:05]} {[%emt 00:00:17]} 7. Bf4 {[%clk 00:19:43]}
{[%emt 00:00:36]} Bg7 {[%clk 00:18:25]} {[%emt 00:00:46]} 8. Qd2 {[%clk
00:18:46]} {[%emt 00:01:00]} O-O {[%clk 00:18:03]} {[%emt 00:00:29]} 9. Bc4
{[%clk 00:17:53]} {[%emt 00:00:57]} a6 {[%clk 00:17:20]} {[%emt 00:00:49]} 10.
Bh6 {[%clk 00:15:35]} {[%emt 00:02:21]} b5 {[%clk 00:16:55]} {[%emt 00:00:31]}
11. Bd5 {[%clk 00:14:05]} {[%emt 00:01:35]} Bb7 {[%clk 00:15:49]} {[%emt
00:01:11]} 12. Bxg7 {[%clk 00:13:06]} {[%emt 00:01:05]} Kxg7 {[%clk 00:15:50]}
{[%emt 00:00:04]} 13. O-O {[%clk 00:13:02]} {[%emt 00:00:07]} Rc8 {[%clk
00:14:31]} {[%emt 00:01:25]} 14. a3 {[%clk 00:12:18]} {[%emt 00:00:49]} Na5
{[%clk 00:13:31]} {[%emt 00:01:05]} 15. Bxb7 {[%clk 00:12:04]} {[%emt
00:00:19]} Nxb7 {[%clk 00:13:34]} {[%emt 00:00:03]} 16. Rfe1 {[%clk 00:10:20]}
{[%emt 00:01:49]} Na5 {[%clk 00:12:26]} {[%emt 00:01:12]} 17. Qd4 {[%clk
00:07:58]} {[%emt 00:02:27]} Rc4 {[%clk 00:10:01]} {[%emt 00:02:31]} 18. Qd3
{[%clk 00:07:43]} {[%emt 00:00:15]} Qc7 {[%clk 00:08:47]} {[%emt 00:01:22]} 19.
Rab1 {[%clk 00:02:50]} {[%emt 00:04:59]} Rd8 {[%clk 00:07:55]} {[%emt
00:00:57]} 20. Rbc1 {[%clk 00:01:41]} {[%emt 00:01:15]} Rc5 {[%clk 00:06:08]}
{[%emt 00:01:51]} 21. Ne2 {[%clk 00:00:55]} {[%emt 00:00:49]} Nc4 {[%clk
00:05:42]} {[%emt 00:00:33]} 22. b4 {[%clk 00:00:32]} {[%emt 00:00:29]} Rc6
{[%clk 00:05:25]} {[%emt 00:00:22]} 23. Ned4 {[%clk 00:00:16]} {[%emt
00:00:19]} Rb6 {[%clk 00:05:21]} {[%emt 00:00:10]} 24. Ng5 {[%clk 00:00:12]}
{[%emt 00:00:09]} Qc8 {[%clk 00:05:07]} {[%emt 00:00:21]} 25. Qg3 {[%clk
00:00:08]} {[%emt 00:00:04]} h6 {[%clk 00:05:00]} {[%emt 00:00:16]} 26. Nh3
{[%clk 00:00:11]} {[%emt 00:00:03]} Ne5 {[%clk 00:04:28]} {[%emt 00:00:37]} 27.
Nf4 {[%clk 00:00:13]} {[%emt 00:00:02]} g5 {[%clk 00:03:59]} {[%emt 00:00:34]}
28. Nd3 {[%clk 00:00:15]} {[%emt 00:00:03]} Ng6 {[%clk 00:03:31]} {[%emt
00:00:34]} 29. Nf5+ {[%clk 00:00:17]} {[%emt 00:00:04]} Kh7 {[%clk 00:03:01]}
{[%emt 00:00:34]} 30. Qh3 {[%clk 00:00:20]} {[%emt 00:00:02]} h5 {[%clk
00:03:04]} {[%emt 00:00:02]} 31. Qe3 {[%clk 00:00:23]} {[%emt 00:00:02]} e6
{[%clk 00:02:00]} {[%emt 00:01:08]} 32. Qxb6 {[%clk 00:00:25]} {[%emt
00:00:03]} exf5 {[%clk 00:02:04]} {[%emt 00:00:02]} 33. exf5 {[%clk 00:00:28]}
{[%emt 00:00:02]} Nh4 {[%clk 00:01:49]} {[%emt 00:00:20]} 34. Re7 {[%clk
00:00:22]} {[%emt 00:00:08]} Nxf5 {[%clk 00:01:26]} {[%emt 00:00:30]} 35. Rxf7+
{[%clk 00:00:24]} {[%emt 00:00:03]} Kg6 {[%clk 00:01:30]} {[%emt 00:00:02]} 36.
Qc7 {[%clk 00:00:25]} {[%emt 00:00:03]} Qa8 {[%clk 00:00:58]} {[%emt 00:00:38]}
37. Qb7 {[%clk 00:00:27]} {[%emt 00:00:02]} Qxb7 {[%clk 00:00:40]} {[%emt
00:00:23]} 38. Rxb7 {[%clk 00:00:31]} {[%emt 00:00:02]} Nd5 {[%clk 00:00:43]}
{[%emt 00:00:02]} 39. Ra7 {[%clk 00:00:30]} {[%emt 00:00:05]} Nc3 {[%clk
00:00:29]} {[%emt 00:00:20]} 40. Kf1 {[%clk 00:00:29]} {[%emt 00:00:04]} Nd4
{[%clk 00:00:25]} {[%emt 00:00:10]} 41. Rxa6 {[%clk 00:00:25]} {[%emt
00:00:09]} Kf5 {[%clk 00:00:13]} {[%emt 00:00:17]} 42. Re1 {[%clk 00:00:25]}
{[%emt 00:00:05]} Nxc2 {[%clk 00:00:14]} {[%emt 00:00:05]} 43. Rc1 {[%clk
00:00:26]} {[%emt 00:00:02]} Nxb4 {[%clk 00:00:06]} {[%emt 00:00:14]} 44. axb4
{[%clk 00:00:29]} {[%emt 00:00:02]} Nd5 {[%clk 00:00:10]} {[%emt 00:00:02]} 45.
g3 {[%clk 00:00:30]} {[%emt 00:00:04]} Ke4 {[%clk 00:00:11]} {[%emt 00:00:03]}
46. Rd1 {[%clk 00:00:28]} {[%emt 00:00:06]} Kd4 {[%clk 00:00:12]} {[%emt
00:00:05]} 47. Nf4+ {[%clk 00:00:31]} {[%emt 00:00:02]} Kc4 {[%clk 00:00:14]}
{[%emt 00:00:04]} 48. Nxd5 {[%clk 00:00:34]} {[%emt 00:00:02]} 1-0

[Event "MČR juniorů a juniorek v rapid šachu 2023"]
[Site "Czech Republic"]
[Date "2023.09.24"]
[Round "7.23"]
[White "Pavlis, Matej"]
[Black "Stary, Simon"]
[Result "1-0"]
[TimeControl "20 min + 5 sec per move"]
[WhiteFideId "23735767"]
[BlackFideId "23734353"]
[WhiteElo "1771"]
[BlackElo "1518"]

1. c4 {[%clk 00:20:08]} {[%emt 00:00:01]} e6 {[%clk 00:20:07]} {[%emt
00:00:04]} 2. g3 {[%clk 00:20:10]} {[%emt 00:00:03]} d5 {[%clk 00:19:59]}
{[%emt 00:00:12]} 3. Bg2 {[%clk 00:20:12]} {[%emt 00:00:03]} Nf6 {[%clk
00:20:03]} {[%emt 00:00:02]} 4. Nc3 {[%clk 00:20:06]} {[%emt 00:00:11]} Be7
{[%clk 00:20:00]} {[%emt 00:00:07]} 5. d4 {[%clk 00:19:55]} {[%emt 00:00:16]}
c6 {[%clk 00:20:02]} {[%emt 00:00:04]} 6. Nf3 {[%clk 00:19:50]} {[%emt
00:00:10]} O-O {[%clk 00:20:01]} {[%emt 00:00:06]} 7. O-O {[%clk 00:19:53]}
{[%emt 00:00:02]} Nbd7 {[%clk 00:19:50]} {[%emt 00:00:16]} 8. Nd2 {[%clk
00:19:48]} {[%emt 00:00:10]} Re8 {[%clk 00:18:03]} {[%emt 00:01:52]} 9. e4
{[%clk 00:19:49]} {[%emt 00:00:03]} dxe4 {[%clk 00:18:06]} {[%emt 00:00:02]} 10.
Ndxe4 {[%clk 00:19:53]} {[%emt 00:00:02]} Nxe4 {[%clk 00:18:09]} {[%emt
00:00:03]} 11. Nxe4 {[%clk 00:19:56]} {[%emt 00:00:01]} Nf6 {[%clk 00:18:12]}
{[%emt 00:00:02]} 12. Be3 {[%clk 00:19:27]} {[%emt 00:00:33]} Nxe4 {[%clk
00:16:29]} {[%emt 00:01:49]} 13. Bxe4 {[%clk 00:19:31]} {[%emt 00:00:01]} Bf6
{[%clk 00:16:33]} {[%emt 00:00:01]} 14. Qd3 {[%clk 00:18:27]} {[%emt 00:01:08]}
g6 {[%clk 00:16:19]} {[%emt 00:00:19]} 15. Rad1 {[%clk 00:18:05]} {[%emt
00:00:27]} e5 {[%clk 00:16:04]} {[%emt 00:00:20]} 16. d5 {[%clk 00:17:14]}
{[%emt 00:00:56]} cxd5 {[%clk 00:16:07]} {[%emt 00:00:02]} 17. cxd5 {[%clk
00:17:05]} {[%emt 00:00:14]} Bh3 {[%clk 00:16:05]} {[%emt 00:00:07]} 18. Rfe1
{[%clk 00:17:01]} {[%emt 00:00:10]} Bg7 {[%clk 00:15:53]} {[%emt 00:00:17]} 19.
d6 {[%clk 00:16:59]} {[%emt 00:00:06]} Qd7 {[%clk 00:15:35]} {[%emt 00:00:24]}
20. Qb3 {[%clk 00:16:43]} {[%emt 00:00:21]} b6 {[%clk 00:10:56]} {[%emt
00:04:44]} 21. Bxa8 {[%clk 00:08:49]} {[%emt 00:07:59]} Rxa8 {[%clk 00:11:00]}
{[%emt 00:00:01]} 22. Qd5 {[%clk 00:08:53]} Rd8 {[%clk 00:11:05]} 23. b3 {[%clk
00:08:44]} {[%emt 00:00:14]} Be6 {[%clk 00:08:26]} {[%emt 00:02:43]} 24. Qd3
{[%clk 00:07:51]} {[%emt 00:00:58]} Qb7 {[%clk 00:07:54]} {[%emt 00:00:37]} 25.
Bc1 {[%clk 00:07:24]} {[%emt 00:00:32]} Bf5 {[%clk 00:02:25]} {[%emt 00:05:35]}
26. Qd5 {[%clk 00:07:20]} {[%emt 00:00:09]} Qa6 {[%clk 00:02:05]} {[%emt
00:00:26]} 27. Bg5 {[%clk 00:06:06]} {[%emt 00:01:18]} Rd7 {[%clk 00:01:58]}
{[%emt 00:00:12]} 28. Qa8+ {[%clk 00:05:52]} {[%emt 00:00:18]} Bf8 {[%clk
00:01:59]} {[%emt 00:00:04]} 29. Bh6 {[%clk 00:05:51]} {[%emt 00:00:06]} 1-0